[Event "Fagernes GM Open Autumn 2024"]
[Site "Fagernes"]
[Date "2024.10.09"]
[Round "5.18"]
[White "Carlsson, Ludvig"]
[Black "Gaikwad, Siddhant"]
[Result "1-0"]
[ECO "E92"]
[WhiteElo "2334"]
[BlackElo "2039"]
[Annotator "RC"]
[PlyCount "125"]
[EventDate "2024.10.03"]
[EventType "swiss"]
[EventCountry "NOR"]
[SourceTitle "playchess.com"]
[Source "ChessBase"]
[SourceQuality "1"]
[TimeControl "40/6000:2400+30"]

1. Nf3 {[%emt 0:06:42]} Nf6 {[%emt 0:00:20]} 2. c4 {[%emt 0:00:00]} g6 {[%emt 0:00:00]} 3. Nc3 {[%emt 0:00:00]} Bg7 {[%emt 0:00:00]} 4. e4 {[%emt 0:00:00]} d6 {[%emt 0:00:00]} 5. d4 {[%emt 0:00:00]} O-O {[%emt 0:00:00]} 6. Be2 {[%emt 0:00:00]} e5 {[%emt 0:01:25]} 7. dxe5 {[%emt 0:00:00]} dxe5 {[%emt 0:00:00]} 8. Qxd8 {[%emt 0:00:00]} Rxd8 {[%emt 0:00:00]} 9. Bg5 {[%emt 0:00:00]} Re8 {[%emt 0:01:11]} 10. Nd5 {[%emt 0:00:00]} Nxd5 {[%emt 0:01:18]} 11. cxd5 {[%emt 0:00:00]} c6 {[%emt 0:03:46]} 12. Bc4 {[%emt 0:00:00]} cxd5 {[%emt 0:02:29]} 13. Bxd5 {[%emt 0:00:00]} Nc6 {[%emt 0:02:18]} 14. O-O-O {[%emt 0:00:00]} Bg4 {[%emt 0:15:45]} 15. Kb1 {[%emt 0:00:00]} Rab8 {[%emt 0:10:39]} 16. Rc1 {[%emt 0:01:07]} Nb4 {[%emt 0:09:34]} 17. Bc4 {[%emt 0:00:00]} b5 {[%emt 0:08:40]} 18. Be2 {[%emt 0:08:47]} f5 {[%emt 0:13:23]} 19. Ng1 {[%emt 0:06:07]} Bxe2 {[%emt 0:01:47]} 20. Nxe2 {[%emt 0:00:00]} Nd3 {[%emt 0:00:11]} 21. Rcf1 {[%emt 0:00:00]} b4 {[%emt 0:03:55]} 22. Nc1 {[%emt 0:00:27]} Nc5 {[%emt 0:05:57]} 23. exf5 {[%emt 0:03:55]} gxf5 {[%emt 0:00:00]} 24. Nb3 {[%emt 0:00:33]} Ne6 {[%emt 0:02:34]} 25. Be3 {[%emt 0:02:22]} Rb7 {[%emt 0:03:59]} 26. Rd1 {[%emt 0:01:06]} f4 {[%emt 0:00:44]} 27. Bc1 {[%emt 0:00:06]} Rb5 {[%emt 0:02:58]} 28. Rhe1 {[%emt 0:00:34]} a5 {[%emt 0:00:07]} 29. Rd6 {[%emt 0:00:00]} a4 {[%emt 0:01:55]} 30. Rxe6 {[%emt 0:00:00]} Rxe6 {[%emt 0:00:00]} 31. Nd4 {[%emt 0:00:00]} Reb6 {[%emt 0:00:21]} 32. Nxb5 {[%emt 0:00:00]} Rxb5 {[%emt 0:00:00]} 33. Re4 {[%emt 0:00:00]} Kf7 {[%emt 0:00:35]} 34. b3 {[%emt 0:00:00]} a3 {[%emt 0:00:15]} 35. Bd2 {[%emt 0:00:00]} Bf8 {[%emt 0:00:00]} 36. f3 {[%emt 0:00:00]} Bd6 {[%emt 0:00:23]} 37. Kc2 {[%emt 0:00:00]} h5 {[%emt 0:00:01]} 38. Be1 {[%emt 0:00:13]} Ke6 {[%emt 0:00:06]} 39. Rc4 {[%emt 0:00:38]} Rb8 {[%emt 0:00:09]} 40. Kd3 {[%emt 0:00:00]} Kd5 {[%emt 0:00:00]} 41. g3 {[%emt 0:44:19]} fxg3 {[%emt 0:07:04]} 42. hxg3 {[%emt 0:00:00]} Be7 {[%emt 0:02:04]} 43. Ke2 {[%emt 0:00:00]} Ke6 {[%emt 0:02:01]} 44. Ke3 {[%emt 0:00:00]} Kd5 {[%emt 0:02:26]} 45. Rc7 {[%emt 0:00:00]} Bc5+ {[%emt 0:02:05]} 46. Ke2 {[%emt 0:00:00]} Bd6 {[%emt 0:02:51]} 47. Rc4 {[%emt 0:00:00]} Be7 {[%emt 0:01:32]} 48. Bf2 {[%emt 0:00:00]} Bd6 {[%emt 0:01:17]} 49. Rc1 {[%emt 0:00:00]} Rb7 {[%emt 0:03:58]} 50. Rc8 {[%emt 0:00:00]} Re7 {[%emt 0:05:32]} 51. Be1 {[%emt 0:00:00]} Rb7 {[%emt 0:03:51]} 52. Rd8 {[%emt 0:00:00]} Ke6 {[%emt 0:02:25]} 53. Re8+ {[%emt 0:00:00]} Kd5 {[%emt 0:00:34]} 54. Rc8 {[%emt 0:00:00]} Ke6 {[%emt 0:03:44]} 55. Kd3 {[%emt 0:00:00]} Be7 {[%emt 0:02:02]} 56. Rc6+ {[%emt 0:00:00]} Kd5 {[%emt 0:01:32]} 57. Rh6 {[%emt 0:00:00]} Rc7 {[%emt 0:01:41]} 58. Bd2 {[%emt 0:00:00]} h4 {[%emt 0:01:57]} 59. gxh4 {[%emt 0:00:00]} Rd7 {[%emt 0:01:09]} 60. Rh7 {[%emt 0:00:00]} Ke6+ {[%emt 0:00:15]} 61. Ke2 {[%emt 0:00:00]} Rd4 {[%emt 0:01:20]} 62. Be3 {[%emt 0:00:00]} Rd8 {[%emt 0:01:30]} 63. Rxe7+ {[%emt 0:00:00]} 1-0

[Event "Fagernes GM Open Autumn 2024"]
[Site "Fagernes"]
[Date "2024.10.09"]
[Round "5.19"]
[White "Sherman, Raem"]
[Black "Kaewpitakkun, Pantham"]
[Result "1-0"]
[ECO "B52"]
[WhiteElo "2390"]
[BlackElo "2023"]
[Annotator "TA"]
[PlyCount "54"]
[EventDate "2024.10.03"]
[EventType "swiss"]
[EventCountry "NOR"]
[SourceTitle "playchess.com"]
[Source "ChessBase"]
[SourceQuality "1"]
[TimeControl "40/6000:2400+30"]

{[%evp 9,54,13,29,25,24,30,24,0,32,-18,0,-5,47,37,57,26,34,0,37,0,62,34,38,55,60,53,130,96,489,179,264,261,601,195,252,241,220,166,304,225,267,258,245,250,275,286,238]} 1. e4 {[%emt 0:00:00]} c5 {[%emt 0:00:00]} 2. Nf3 {[%emt 0:00:00]} d6 {[%emt 0:00:00]} 3. Bb5+ {[%emt 0:00:00]} Bd7 {[%emt 0:00:00]} 4. c4 {[%emt 0:00:00]} Nf6 {[%emt 0:03:04]} 5. Nc3 {[%emt 0:00:00]} g6 {[%emt 0:04:07]} 6. O-O {[%emt 0:00:00]} Bg7 {[%emt 0:02:18]} 7. d4 {[%emt 0:00:00]} cxd4 {[%emt 0:00:34]} 8. Nxd4 {[%emt 0:00:00] White has an edge.} O-O {[%emt 0:01:34]} 9. Qd3 {[%emt 0:00:00]} (9. Bxd7 $14 Qxd7 10. b3) 9... Nc6 {[%emt 0:01:48]} 10. Bxc6 {[%emt 0:00:00]} Bxc6 {[%emt 0:00:47]} (10... bxc6 $11 11. Rd1 c5) 11. b3 {[%emt 0:00:00]} Nd7 {[%emt 0:03:38]} 12. Bb2 {[%emt 0:04:02]} a6 {[%emt 0:02:49]} 13. Kh1 {[%emt 0:03:18]} Qc7 {[%emt 0:04:59]} 14. f4 {[%emt 0:01:38]} Rab8 {[%emt 0:02:20]} ({Better is} 14... Nc5 $11 15. Qe3 Rae8) 15. Rae1 {[%emt 0:06:43]} Rfe8 {[%emt 0:01:49]} 16. Nd5 {[%emt 0:03:11]} Bxd5 {[%emt 0:02:29]} 17. exd5 {[%emt 0:00:00]} Qc5 {[%emt 0:02:39]} ({Black should try} 17... b5 $14) 18. Bc3 {[%emt 0:02:19] White is more active.} Bf8 $2 {[%emt 0:07:14][%mdl 8192] [#] This move loses the game for Black.} (18... Bf6 $16) 19. Re2 $2 {[%emt 0:06:16]} (19. f5 {Strongly threatening fxg6.} g5 20. Qd2) 19... b5 {[%emt 0:01:09]} (19... Nf6 {was called for.} 20. Bb2 Bg7) 20. Nc6 $18 {[%emt 0:00:31]} Rb7 $2 {[%emt 0:02:04]} (20... bxc4 21. bxc4 Qa3) 21. Rfe1 $2 {[%emt 0:06:46]} (21. Bd4) 21... bxc4 {[%emt 0:01:51]} (21... Nb6 $142) 22. bxc4 {[%emt 0:00:00][%cal Oc3d4]} Nb6 {[%emt 0:01:47]} 23. Rb1 {[%emt 0:11:20]} Rd7 {[%emt 0:03:53]} (23... Nxd5 $142 24. Rxb7 Nxf4) 24. Rb4 {[%emt 0:10:20] [#] Bd4 is the strong threat.} Bg7 {[%emt 0:00:00] Threatens to win with ...Bxc3.} 25. Be1 {[%emt 0:03:19] Hoping for Bf2.} a5 {[%emt 0:01:58]} 26. Bf2 {[%emt 0:00:03]} axb4 27. Bxc5 {[%emt 0:00:00]} dxc5 {[%emt 0:00:09] Weighted Error Value: White=0.66/Black=0.68.  Loses game:     	---       	Black=1      Mistake:       	White=3     	Black=7      Inaccurate:     	White=4     	Black=2      OK:         	White=6     	Black=4      Best:        	---       	Black=1} 1-0

[Event "Fagernes GM Open Autumn 2024"]
[Site "Fagernes"]
[Date "2024.10.09"]
[Round "5.20"]
[White "Eliseev, Sergey"]
[Black "Mannion, Stephen R"]
[Result "1/2-1/2"]
[ECO "C42"]
[WhiteElo "2276"]
[BlackElo "2142"]
[Annotator "RC"]
[PlyCount "127"]
[EventDate "2024.10.03"]
[EventType "swiss"]
[EventCountry "NOR"]
[SourceTitle "playchess.com"]
[Source "ChessBase"]
[SourceQuality "1"]
[TimeControl "40/6000:2400+30"]

1. e4 {[%emt 0:00:52]} e5 {[%emt 0:04:32]} 2. Nf3 {[%emt 0:00:00]} Nf6 {[%emt 0:00:00]} 3. Nxe5 {[%emt 0:00:00]} d6 {[%emt 0:00:00]} 4. Nf3 {[%emt 0:00:00]} Nxe4 {[%emt 0:00:00]} 5. Nc3 {[%emt 0:00:00]} Nxc3 {[%emt 0:00:00]} 6. dxc3 {[%emt 0:00:00]} Be7 {[%emt 0:00:00]} 7. Bf4 {[%emt 0:00:00]} O-O {[%emt 0:00:00]} 8. Qd2 {[%emt 0:00:00]} Nd7 {[%emt 0:00:00]} 9. O-O-O {[%emt 0:00:00]} Nc5 {[%emt 0:00:00]} 10. Nd4 {[%emt 0:05:32]} Re8 {[%emt 0:00:06]} 11. f3 {[%emt 0:07:08]} Ne6 {[%emt 0:00:04]} 12. Be3 {[%emt 0:00:04]} Bg5 {[%emt 0:00:24]} 13. f4 {[%emt 0:03:57]} Bf6 {[%emt 0:00:00]} 14. Nf3 {[%emt 0:07:14]} c6 {[%emt 0:06:22]} 15. g4 {[%emt 0:27:30]} Qa5 {[%emt 0:04:50]} 16. Kb1 {[%emt 0:06:41]} Nc5 {[%emt 0:07:32]} 17. Bxc5 {[%emt 0:00:00]} dxc5 {[%emt 0:02:22]} 18. f5 {[%emt 0:04:37]} Rd8 {[%emt 0:57:24]} 19. Qe1 {[%emt 0:00:00]} Rxd1+ {[%emt 0:00:00]} 20. Qxd1 {[%emt 0:00:00]} Qd8 {[%emt 0:01:03]} 21. Bd3 {[%emt 0:02:59]} b5 {[%emt 0:01:47]} 22. g5 {[%emt 0:01:31]} Bxg5 {[%emt 0:00:14]} 23. Be4 {[%emt 0:04:47]} Qxd1+ {[%emt 0:02:50]} 24. Rxd1 {[%emt 0:00:00]} Bf6 {[%emt 0:00:00]} 25. Bxc6 {[%emt 0:01:05]} Rb8 {[%emt 0:00:00]} 26. Rd5 {[%emt 0:00:48]} b4 {[%emt 0:06:14]} 27. c4 {[%emt 0:02:09]} Rb6 {[%emt 0:00:00]} 28. Rxc5 {[%emt 0:03:50]} Bxf5 {[%emt 0:00:00]} 29. Bd5 {[%emt 0:02:27]} b3 {[%emt 0:01:19]} 30. axb3 {[%emt 0:05:18]} Rxb3 {[%emt 0:00:00]} 31. Rb5 {[%emt 0:03:30]} Rxb5 {[%emt 0:00:00]} 32. cxb5 {[%emt 0:00:00]} g5 {[%emt 0:00:00]} 33. Kc1 {[%emt 0:01:12]} g4 {[%emt 0:00:00]} 34. Nd2 {[%emt 0:00:00]} Be5 {[%emt 0:00:00]} 35. Nf1 {[%emt 0:00:00]} h5 {[%emt 0:00:00]} 36. Kd2 {[%emt 0:03:54]} Bxb2 {[%emt 0:00:14]} 37. c3 {[%emt 0:00:08]} Ba3 {[%emt 0:00:00]} 38. Ke3 {[%emt 0:00:23]} Bc5+ {[%emt 0:00:00]} 39. Kf4 {[%emt 0:00:01]} Bd3 {[%emt 0:00:00]} 40. Ng3 {[%emt 0:00:00]} Bxb5 {[%emt 0:01:36]} 41. Nxh5 {[%emt 0:41:35]} Bd6+ {[%emt 0:06:13]} 42. Kxg4 {[%emt 0:00:00]} Be2+ {[%emt 0:09:51]} 43. Kg5 {[%emt 0:00:00]} Bxh5 {[%emt 0:07:32]} 44. Kxh5 {[%emt 0:00:00]} Bxh2 {[%emt 0:00:04]} 45. Kg5 {[%emt 0:00:00]} Be5 {[%emt 0:02:01]} 46. c4 {[%emt 0:00:00]} Bd4 {[%emt 0:00:32]} 47. Kf5 {[%emt 0:00:00]} Kf8 {[%emt 0:02:49]} 48. Ke4 {[%emt 0:00:00]} Bg1 {[%emt 0:06:20]} 49. Bc6 {[%emt 0:00:00]} Ke7 {[%emt 0:00:19]} 50. Kd5 {[%emt 0:00:00]} Kd8 {[%emt 0:00:32]} 51. Ba4 {[%emt 0:00:00]} Bh2 {[%emt 0:03:14]} 52. Bc2 {[%emt 0:00:00]} Kc7 {[%emt 0:00:19]} 53. Kc5 {[%emt 0:00:00]} Bg1+ {[%emt 0:02:01]} 54. Kd5 {[%emt 0:00:00]} Bh2 {[%emt 0:01:33]} 55. Kc5 {[%emt 0:00:00]} Bg3 {[%emt 0:00:19]} 56. Be4 {[%emt 0:00:00]} Bf2+ {[%emt 0:01:47]} 57. Kd5 {[%emt 0:00:00]} Kb6 {[%emt 0:00:27]} 58. Ke5 {[%emt 0:00:00]} Bh4 {[%emt 0:00:49]} 59. Kd6 {[%emt 0:00:00]} a5 {[%emt 0:01:09]} 60. c5+ {[%emt 0:00:00]} Kb5 {[%emt 0:00:09]} 61. Bc6+ {[%emt 0:00:00]} Kb4 {[%emt 0:00:25]} 62. Be8 {[%emt 0:00:00]} f6 {[%emt 0:00:46]} 63. c6 {[%emt 0:00:00]} Bg3+ {[%emt 0:01:39]} 64. Ke6 {[%emt 0:00:00]} 1/2-1/2

[Event "Fagernes GM Open Autumn 2024"]
[Site "Fagernes"]
[Date "2024.10.09"]
[Round "5.21"]
[White "Sieber, Fiona"]
[Black "Kittilsen, Sigurd"]
[Result "1-0"]
[ECO "B34"]
[WhiteElo "2264"]
[BlackElo "1981"]
[Annotator "RC"]
[PlyCount "91"]
[EventDate "2024.10.03"]
[EventType "swiss"]
[EventCountry "NOR"]
[SourceTitle "playchess.com"]
[Source "ChessBase"]
[SourceQuality "1"]
[TimeControl "40/6000:2400+30"]

1. e4 {[%emt 0:00:00]} c5 {[%emt 0:00:00]} 2. Nf3 {[%emt 0:00:00]} Nc6 {[%emt 0:00:00]} 3. d4 {[%emt 0:00:00]} cxd4 {[%emt 0:00:00]} 4. Nxd4 {[%emt 0:00:00]} Nf6 {[%emt 0:00:00]} 5. Nc3 {[%emt 0:00:00]} g6 {[%emt 0:00:11]} 6. Nxc6 {[%emt 0:00:00]} bxc6 {[%emt 0:04:26]} 7. e5 {[%emt 0:00:00]} Ng8 {[%emt 0:01:07]} 8. Bc4 {[%emt 0:03:27]} Bg7 {[%emt 0:02:45]} 9. Qe2 {[%emt 0:04:23]} Qa5 {[%emt 0:01:25]} 10. Bf4 {[%emt 0:05:43]} d5 {[%emt 0:09:14]} 11. Bb3 {[%emt 0:16:05]} Ba6 {[%emt 0:06:43]} 12. Qd2 {[%emt 0:00:52]} e6 {[%emt 0:00:54]} 13. O-O-O {[%emt 0:06:04]} Ne7 {[%emt 0:02:04]} 14. Kb1 {[%emt 0:03:44]} O-O {[%emt 0:00:49]} 15. Nxd5 {[%emt 0:01:02]} Qd8 {[%emt 0:03:09]} 16. Nxe7+ {[%emt 0:10:04]} Qxe7 {[%emt 0:00:00]} 17. Qd6 {[%emt 0:00:00]} Qb7 {[%emt 0:00:57]} 18. h4 {[%emt 0:09:59]} c5 {[%emt 0:04:52]} 19. Qxc5 {[%emt 0:00:56]} Qxg2 {[%emt 0:01:25]} 20. Qe3 {[%emt 0:01:59]} h5 {[%emt 0:02:39]} 21. Rhg1 {[%emt 0:00:51]} Qb7 {[%emt 0:00:54]} 22. Bg5 {[%emt 0:06:26]} Rab8 {[%emt 0:02:13]} 23. Rd4 {[%emt 0:01:48]} Rfc8 {[%emt 0:03:15]} 24. Rgd1 {[%emt 0:01:50]} Bc4 {[%emt 0:04:07]} 25. Rd7 {[%emt 0:02:19]} Qb5 {[%emt 0:07:59]} 26. Qf4 {[%emt 0:04:04]} Qxe5 {[%emt 0:03:46]} 27. Qxf7+ {[%emt 0:00:00]} Kh8 {[%emt 0:00:00]} 28. Bc1 {[%emt 0:00:00]} Bxb3 {[%emt 0:01:15]} 29. axb3 {[%emt 0:00:00]} Qf6 {[%emt 0:15:39]} 30. Rxa7 {[%emt 0:00:28]} Rf8 {[%emt 0:04:51]} 31. Qxf6 {[%emt 0:03:24]} Bxf6 {[%emt 0:01:00]} 32. Rdd7 {[%emt 0:01:01]} Rfd8 {[%emt 0:00:00]} 33. Rh7+ {[%emt 0:00:25]} Kg8 {[%emt 0:00:00]} 34. Rh6 {[%emt 0:00:26]} Bxh4 {[%emt 0:00:00]} 35. Rxg6+ {[%emt 0:00:00]} Kh8 {[%emt 0:00:00]} 36. Bh6 {[%emt 0:02:46]} Rg8 {[%emt 0:05:58]} 37. Bg7+ {[%emt 0:00:00]} Rxg7 {[%emt 0:00:00]} 38. Rgxg7 {[%emt 0:00:00]} Bxf2 {[%emt 0:00:00]} 39. Rh7+ {[%emt 0:00:00]} Kg8 {[%emt 0:00:00]} 40. Rag7+ {[%emt 0:00:00]} Kf8 {[%emt 0:00:00]} 41. Rf7+ {[%emt 0:44:15]} Kg8 {[%emt 0:39:00]} 42. Rhg7+ {[%emt 0:00:33]} Kh8 {[%emt 0:00:05]} 43. Rg5 {[%emt 0:00:51]} Bd4 {[%emt 0:01:30]} 44. c3 {[%emt 0:00:09]} Be3 {[%emt 0:00:56]} 45. Rxh5+ {[%emt 0:00:06]} Kg8 {[%emt 0:00:05]} 46. Rf3 {[%emt 0:01:01]} 1-0

[Event "Fagernes GM Open Autumn 2024"]
[Site "Fagernes"]
[Date "2024.10.09"]
[Round "5.22"]
[White "Aamodt, Peder Marcus"]
[Black "Nagare Akhilesh"]
[Result "1/2-1/2"]
[ECO "B31"]
[WhiteElo "2126"]
[BlackElo "2245"]
[Annotator "RC"]
[PlyCount "182"]
[EventDate "2024.10.03"]
[EventType "swiss"]
[EventCountry "NOR"]
[SourceTitle "playchess.com"]
[Source "ChessBase"]
[SourceQuality "1"]
[TimeControl "40/6000:2400+30"]

1. e4 {[%emt 0:00:00]} c5 {[%emt 0:00:00]} 2. Nf3 {[%emt 0:00:00]} Nc6 {[%emt 0:00:00]} 3. Bb5 {[%emt 0:00:00]} g6 {[%emt 0:00:00]} 4. O-O {[%emt 0:00:00]} Bg7 {[%emt 0:00:00]} 5. c3 {[%emt 0:00:00]} e5 {[%emt 0:00:00]} 6. d4 {[%emt 0:00:00]} cxd4 {[%emt 0:00:00]} 7. cxd4 {[%emt 0:00:00]} exd4 {[%emt 0:00:00]} 8. Bf4 {[%emt 0:00:00]} Nge7 {[%emt 0:00:00]} 9. Bd6 {[%emt 0:00:00]} O-O {[%emt 0:00:00]} 10. Nbd2 {[%emt 0:05:57]} a6 {[%emt 0:13:21]} 11. Bc4 {[%emt 0:02:29]} b5 {[%emt 0:01:39]} 12. Bd5 {[%emt 0:00:26]} Nxd5 {[%emt 0:03:46]} 13. Bxf8 {[%emt 0:07:09]} Qxf8 {[%emt 0:00:00]} 14. exd5 {[%emt 0:00:00]} Nb4 {[%emt 0:00:00]} 15. Nb3 {[%emt 0:01:20]} Bb7 {[%emt 0:02:54]} 16. a3 {[%emt 0:03:00]} Nxd5 {[%emt 0:00:00]} 17. Na5 {[%emt 0:00:00]} Qb8 {[%emt 0:05:25]} 18. Qd2 {[%emt 0:12:10]} d3 19. Nxb7 {[%emt 0:01:55]} Qxb7 {[%emt 0:20:17]} 20. Rab1 {[%emt 0:06:05]} b4 {[%emt 0:05:49]} 21. Qxd3 {[%emt 0:00:34]} a5 {[%emt 0:11:40]} 22. Rfd1 {[%emt 0:00:43]} Nf6 {[%emt 0:00:07]} 23. Ne5 {[%emt 0:01:59]} d5 {[%emt 0:00:00]} 24. a4 {[%emt 0:04:22]} Re8 {[%emt 0:02:29]} 25. Nf3 {[%emt 0:00:00]} Qc6 {[%emt 0:02:36]} 26. Nd4 {[%emt 0:07:58]} Qc4 {[%emt 0:15:35]} 27. Qxc4 {[%emt 0:05:01]} dxc4 {[%emt 0:00:00]} 28. Nc6 {[%emt 0:00:00]} Bh6 {[%emt 0:00:00]} 29. Rd4 {[%emt 0:07:28]} c3 {[%emt 0:01:51]} 30. bxc3 {[%emt 0:00:00]} bxc3 {[%emt 0:00:00]} 31. Rc4 {[%emt 0:00:00]} Bd2 {[%emt 0:00:18]} 32. Nd4 {[%emt 0:03:34]} Re4 {[%emt 0:00:19]} 33. Rc8+ {[%emt 0:00:00]} Kg7 {[%emt 0:00:00]} 34. Nf3 {[%emt 0:00:27]} Rxa4 {[%emt 0:00:00]} 35. Nxd2 {[%emt 0:04:35]} cxd2 {[%emt 0:00:00]} 36. Rc2 {[%emt 0:00:45]} Ne4 {[%emt 0:10:40]} 37. f3 {[%emt 0:00:28]} Rb4 {[%emt 0:00:00]} 38. Ra1 {[%emt 0:01:34]} Nd6 {[%emt 0:00:40]} 39. Rxd2 {[%emt 0:00:00]} Nc4 {[%emt 0:00:00]} 40. Rda2 {[%emt 0:00:06]} Rb5 {[%emt 0:00:02]} 41. Ra4 {[%emt 0:41:32]} Ne3 {[%emt 0:40:52]} 42. Rxa5 {[%emt 0:00:39]} Rb2 {[%emt 0:00:13]} 43. R5a2 {[%emt 0:00:11]} Rb6 {[%emt 0:00:05]} 44. Re2 {[%emt 0:00:50]} Nf5 {[%emt 0:00:05]} 45. Rd1 {[%emt 0:00:56]} h5 {[%emt 0:00:00]} 46. g3 {[%emt 0:00:00]} Rb3 {[%emt 0:00:00]} 47. Kf2 {[%emt 0:00:00]} Ra3 {[%emt 0:00:00]} 48. Rd7 {[%emt 0:00:00]} Rb3 {[%emt 0:00:00]} 49. Ra2 {[%emt 0:00:00]} Rb4 {[%emt 0:00:00]} 50. h3 {[%emt 0:00:00]} Rb3 {[%emt 0:00:00]} 51. Rad2 {[%emt 0:00:00]} Rb4 {[%emt 0:00:00]} 52. g4 {[%emt 0:00:00]} hxg4 {[%emt 0:00:00]} 53. hxg4 {[%emt 0:00:00]} Nh6 {[%emt 0:00:00]} 54. Kg3 {[%emt 0:00:00]} Rb8 {[%emt 0:00:00]} 55. Ra7 {[%emt 0:00:00]} Rb5 {[%emt 0:00:00]} 56. Rdd7 {[%emt 0:00:00]} g5 {[%emt 0:00:00]} 57. Ra6 {[%emt 0:00:00]} Ng8 {[%emt 0:00:00]} 58. Rc7 {[%emt 0:00:00]} Rd5 {[%emt 0:00:00]} 59. Kf2 {[%emt 0:00:00]} Rb5 {[%emt 0:00:00]} 60. Ra3 {[%emt 0:00:00]} Rb2+ {[%emt 0:00:00]} 61. Ke3 {[%emt 0:00:00]} Rb5 {[%emt 0:00:00]} 62. Kd3 {[%emt 0:00:00]} Rd5+ {[%emt 0:00:00]} 63. Kc4 {[%emt 0:00:00]} Rd1 {[%emt 0:00:00]} 64. Rb7 {[%emt 0:00:00]} Rc1+ {[%emt 0:00:00]} 65. Kd4 {[%emt 0:00:00]} Rd1+ {[%emt 0:00:00]} 66. Ke3 {[%emt 0:00:00]} Rd5 {[%emt 0:00:00]} 67. Ra6 {[%emt 0:00:00]} Re5+ {[%emt 0:00:00]} 68. Kd4 {[%emt 0:00:00]} Re1 {[%emt 0:00:00]} 69. Rb5 {[%emt 0:00:00]} f6 {[%emt 0:00:00]} 70. Rb7+ {[%emt 0:00:00]} Ne7 {[%emt 0:00:00]} 71. Rbb6 {[%emt 0:00:00]} Ng8 {[%emt 0:00:00]} 72. Kc5 {[%emt 0:00:00]} Kf7 {[%emt 0:00:00]} 73. Rb7+ {[%emt 0:00:00]} Ne7 {[%emt 0:00:00]} 74. Raa7 {[%emt 0:00:00]} Re2 {[%emt 0:00:00]} 75. Kd6 {[%emt 0:00:00]} Rd2+ {[%emt 0:00:00]} 76. Kc7 {[%emt 0:00:00]} Rd3 {[%emt 0:00:56]} 77. Kb6 {[%emt 0:00:33]} Re3 {[%emt 0:00:40]} 78. Rc7 {[%emt 0:00:58]} Re1 {[%emt 0:00:48]} 79. Rd7 {[%emt 0:01:11]} Re3 {[%emt 0:00:31]} 80. Kc5 {[%emt 0:01:15]} Re1 {[%emt 0:00:21]} 81. Ra8 {[%emt 0:00:23]} Rc1+ {[%emt 0:01:00]} 82. Kb5 {[%emt 0:02:13]} Re1 {[%emt 0:01:08]} 83. Kc4 {[%emt 0:01:17]} Rc1+ {[%emt 0:00:16]} 84. Kb3 {[%emt 0:01:28]} Rc6 {[%emt 0:02:19]} 85. Rh8 {[%emt 0:00:55]} Ke6 {[%emt 0:03:05]} 86. Rd1 {[%emt 0:05:41]} Ng6 {[%emt 0:00:37]} 87. Re8+ {[%emt 0:01:42]} Kf7 {[%emt 0:00:12]} 88. Rb8 {[%emt 0:02:23]} Rc7 {[%emt 0:01:17]} 89. Rd6 {[%emt 0:00:48]} Ne5 {[%emt 0:02:12]} 90. Rbb6 {[%emt 0:00:07]} Nd7 {[%emt 0:00:05]} 91. Ra6 {[%emt 0:00:20]} Nc5+ {[%emt 0:00:02]} 1/2-1/2